{"text_format":"1","workbook":"xlsx","n_sheets":16,"sheets":["↓","✗","Site","Fund center","Profit center","Cost center","MIS code","Commit","Object","Asset","Statistic","Financial","Trust","Sub","Fund","Other"],"not_rendered":{"charts":0,"images":0,"macros":1,"external_links":1,"defined_names":8,"comments":0,"pivot_tables":0},"unopened":[],"bounds":{"document_bytes":16777216,"sheet_cells":100000,"rows_first":2000,"rows_last":500,"rows_between":2000,"halvings":0,"cell_chars":16384,"cell_head_chars":4096},"cells_cut":0,"cells_raw":0,"read":"whole","date_system":"1900"}

{"sheet":"↓","index":0,"n_rows":117,"n_cols":16,"rows_kept":117,"cut":false,"hidden":true,"merged":[]}
["Mã có tên","Site","SITE (CƠ SỞ KINH DOANH)","FUND CENTER (BỘ PHẬN LẬP NGÂN SÁCH)","PROFIT CENTER","COST CENTER (BỘ PHẬN)","MIS CODE (MÃ LẬP BÁO CÁO QUẢN TRỊ)","COMMIT (MÃ KHOẢN MỤC)","MÃ KHOẢN MỤC NGÂN SÁCH","ĐỐI TƯỢNG DỊCH VỤ","QUỸ","MỨC ĐỘ TIN CẬY","SỐ TG PB","MÃ PHỤ","FINANCIAL STATEMENT","_"]
[true,"HY",{"$f":"_xlfn.LET(_xlpm.a,L_SI[Site],\n_xlpm.a&IF($A$2,\";\"&_xlfn.XLOOKUP(_xlpm.a,L_SI[Site],L_SI[Name]),\"\"))","v":"_;_"},{"$f":"_xlfn.LET(_xlpm.a,L_FC[Fund center],\n_xlpm.a&IF($A$2,\";\"&_xlfn.XLOOKUP(_xlpm.a,L_FC[Fund center],L_FC[FC name]),\"\"))","v":"VN02V00101;LN/Vận hành"},{"$f":"_xlfn.LET(_xlpm.a,L_PC[Profit center],\n_xlpm.a&IF($A$2,\";\"&_xlfn.XLOOKUP(_xlpm.a,L_PC[Profit center],L_PC[PC name]),\"\"))","v":"VN02V00101;VB/Vận hành"},{"$f":"_xlfn.LET(_xlpm.a,_xlfn._xlws.FILTER(L_CC[Cost center],ISNUMBER(SEARCH($B$2,L_CC[Site]))),\n_xlpm.a&IF($A$2,\";\"&_xlfn.XLOOKUP(_xlpm.a,L_CC[Cost center],L_CC[CC name]),\"\"))","v":{"$error":"#VALUE!"}},{"$f":"_xlfn.LET(_xlpm.c,L_Mis[MIS code],_xlpm.c&IF($A$2,\";\"&_xlfn.XLOOKUP(_xlpm.c,L_Mis[MIS code],L_Mis[MIS name]),\"\"))","v":"MIS.CPNS010;Chi phí lương"},{"$f":"_xlfn.LET(_xlpm.c,L_CI[CI code],_xlpm.c&IF($A$2,\";\"&_xlfn.XLOOKUP(_xlpm.c,L_CI[CI code],L_CI[CI name]),\"\"))","v":"MIS.DT001;Doanh thu bán vé"},{"$f":"_xlfn.LET(\n_xlpm.a,_xlfn.LET(_xlpm.c,L_CI[CI code],_xlpm.c&IF($A$2,\";\"&_xlfn.XLOOKUP(_xlpm.c,L_CI[CI code],L_CI[CI name]),\"\")),\n_xlpm.b,_xlfn.LET(_xlpm.s,L_ST[Statistics],_xlpm.s&IF($A$2,\";\"&_xlfn.XLOOKUP(_xlpm.s,L_ST[Statistics],L_ST[Statistics name]),\"\")),\n_xlpm.c,ROWS(_xlpm.a),_xlpm.d,ROWS(_xlpm.b),_xlpm.e,_xlpm.c+_xlpm.d,IF(_xlfn.SEQUENCE(_xlpm.e)<=_xlpm.c,INDEX(_xlpm.a,_xlfn.SEQUENCE(_xlpm.c),{1}),INDEX(_xlpm.b,_xlfn.SEQUENCE(_xlpm.e)-_xlpm.c,{1})))","v":"MIS.DT001;Doanh thu bán vé"},{"$f":"_xlfn.LET(_xlpm.a,L_OJ[Object],\n_xlpm.a&IF($A$2,\";\"&_xlfn.XLOOKUP(_xlpm.a,L_OJ[Object],L_OJ[Object name]),\"\"))","v":"08A;Long Biên - Đông Mỹ"},{"$f":"_xlfn.LET(_xlpm.a,L_FD[Fund],\n_xlpm.a&IF($A$2,\";\"&_xlfn.XLOOKUP(_xlpm.a,L_FD[Fund],L_FD[Fund name]),\"\"))","v":";"},{"$f":"L_TR[Trust]","v":"Xanh"},{"$f":"L_KY[KỲ PB]","v":0},{"$f":"L_SUB[Sub code]","v":0},{"$f":"_xlfn.LET(_xlpm.a,L_FS[FS code],\n_xlpm.a&IF($A$2,\";\"&_xlfn.XLOOKUP(_xlpm.a,L_FS[FS code],L_FS[FS name]),\"\"))","v":"001_;Doanh thu bán hàng"}]
[null,null,"HO;Head Office","VN02V08001;LN/Xưởng","VN02V00202;VB/KSCL & ANAT",null,"MIS.CPNS011;Chi phí lương ngoài giờ","MIS.DT002;Doanh thu trợ giá ","MIS.DT002;Doanh thu trợ giá ","08B;Long Biên - Vạn Phúc (Thanh Trì)",null,"Vàng",1,null,"002_;Chiết khấu, giảm giá"]
[null,null,"LN;Liên Ninh","VN02V09001;LN/Ban giám đốc","VN02V00301;VB/VH/Tuyến 08A",null,"MIS.CPNS012;Chi phí lương tháng 13","MIS.DT003;Doanh thu quảng cáo","MIS.DT003;Doanh thu quảng cáo","09A;Trần Khánh Dư - Cầu Giấy - ĐH Mỏ",null,"Đỏ",2,null,"011_;Giá vốn hàng bán"]
[null,null,null,"VN02V09101;LN/P. Hành chính - Nhân sự","VN02V00302;VB/VH/Tuyến 08A/Tài xế",null,"MIS.CPNS02;Chi phí thưởng","MIS.DT004;Doanh thu cho thuê tài sản","MIS.DT004;Doanh thu cho thuê tài sản","09B;Trần Khánh Dư - Công viên Thống Nhất - Bến xe Mỹ Đình",null,"Tím",3,null,"021_;Doanh thu tài chính"]
[null,null,null,"VN02V09201;LN/P. Kế toán","VN02V00303;VB/VH/Tuyến 08A/HDV",null,"MIS.CPNS03;Chi phí BHXH, BHYT, BHTN","MIS.DT005;Doanh thu hợp tác kinh doanh","MIS.DT005;Doanh thu hợp tác kinh doanh","19;Trần Khánh Dư - HV Chính sách và phát triển",null,null,6,null,"022_;Chi phí tài chính"]
[null,null,null,null,"VN02V00401;VB/VH/Tuyến 08B",null,"MIS.CPNS041;Chi phí phúc lợi 4,5tr","MIS.DT006;Doanh thu trông giữ xe","MIS.DT006;Doanh thu trông giữ xe","21A;Bến xe Giáp Bát - Bến xe Yên Nghĩa",null,null,9,null,"025_;Chi phí bán hàng"]
[null,null,null,null,"VN02V00402;VB/VH/Tuyến 08B/Tài xế",null,"MIS.CPNS042;Phúc lợi HĐ tập thể, teambuilding","MIS.DT007;Doanh thu sửa chữa bảo dưỡng","MIS.DT007;Doanh thu sửa chữa bảo dưỡng","21B;Duyên Thái - Bến xe Mỹ Đình",null,null,12,null,"026_;Chi phí quản lý"]
[null,null,null,null,"VN02V00403;VB/VH/Tuyến 08B/HDV",null,"MIS.CPNS043;Phúc lợi khám sức khỏe","MIS.DT008;Doanh thu bán phụ tùng","MIS.DT008;Doanh thu bán phụ tùng","37;Bến xe Giáp Bát - Chương Mỹ",null,null,15,null,"031_;Thu thập khác"]
[null,null,null,null,"VN02V00501;VB/VH/Tuyến 09A",null,"MIS.CPNS044;Phúc lợi BH Sức khỏe","MIS.DT009;Doanh thu bán xăng dầu","MIS.DT009;Doanh thu bán xăng dầu","125;BX Thường Tín- Tế Tiêu",null,null,18,null,"032_;Chi phí khác"]
[null,null,null,null,"VN02V00502;VB/VH/Tuyến 09A/Tài xế",null,"MIS.CPVT01;Chi phí điện Ebus","MIS.DT010;Doanh thu đào tạo lái xe","MIS.DT010;Doanh thu đào tạo lái xe",null,null,null,21,null,"110_;Tiền và các khoản tương đương tiền"]
[null,null,null,null,"VN02V00503;VB/VH/Tuyến 09A/HDV",null,"MIS.CPVT02;Chi phí công nghệ thông tin","MIS.DT011;Doanh thu sát hạch lái xe","MIS.DT011;Doanh thu sát hạch lái xe",null,null,null,24,null,"120_;Các khoản đầu tư tài chính ngắn hạn"]
[null,null,null,null,"VN02V00601;VB/VH/Tuyến 09B",null,"MIS.CPVT03;Chi phí điện thoại, internet","MIS.DT012;Doanh thu cho thuê xe","MIS.DT012;Doanh thu cho thuê xe",null,null,null,27,null,"130_;Các khoản phải thu ngắn hạn"]
[null,null,null,null,"VN02V00602;VB/VH/Tuyến 09B/Tài xế",null,"MIS.CPVT04;CP BDSC","MIS.DT013;Doanh thu hoạt động du lịch","MIS.DT013;Doanh thu hoạt động du lịch",null,null,null,30,null,"140_;Hàng tồn kho"]
[null,null,null,null,"VN02V00603;VB/VH/Tuyến 09B/HDV",null,"MIS.CPVT05;CP bảo trì, PCCC, vật tư tiêu hao","MIS.DT014;Doanh thu dịch vụ sạc pin","MIS.DT014;Doanh thu dịch vụ sạc pin",null,null,null,33,null,"150_;Chi phí trả trước ngắn hạn"]
[null,null,null,null,"VN02V00701;VB/VH/Tuyến 19",null,"MIS.CPVT06;Phí cầu đường, bến bãi","MIS.DT015;Doanh thu dịch vụ khác","MIS.DT015;Doanh thu dịch vụ khác",null,null,null,36,null,"152_;Thuế GTGT được khấu trừ HĐKD"]
[null,null,null,null,"VN02V00702;VB/VH/Tuyến 19/Tài xế",null,"MIS.CPVT07;Chi phí duy trì xe","MIS.CPNS01;CP lương chính","MIS.CPNS01;CP lương chính",null,null,null,39,null,"153_;Thuế GTGT được khấu trừ HĐĐT"]
[null,null,null,null,"VN02V00703;VB/VH/Tuyến 19/HDV",null,"MIS.CPVT08;Phí bảo trì đường bộ","MIS.CPNS02;CP lương ngoài giờ","MIS.CPNS02;CP lương ngoài giờ",null,null,null,42,null,"158_;Tài sản ngắn hạn khác"]
[null,null,null,null,"VN02V00801;VB/VH/Tuyến 21A",null,"MIS.CPVT09;Đăng kiểm (khám xe)","MIS.CPNS03;CP lương tháng 13","MIS.CPNS03;CP lương tháng 13",null,null,null,null,null,"210_;Các khoản phải thu dài hạn"]
[null,null,null,null,"VN02V00802;VB/VH/Tuyến 21A/Tài xế",null,"MIS.CPVT10;CP Bảo hiểm trách nhiệm dân sự","MIS.CPNS04;CP BHXH, BHYT, BHTN","MIS.CPNS04;CP BHXH, BHYT, BHTN",null,null,null,null,null,"220_;Tài sản cố định"]
[null,null,null,null,"VN02V00803;VB/VH/Tuyến 21A/HDV",null,"MIS.CPVT11;Chi phí thuế đất nông nghiệp","MIS.CPNS05;CP thưởng","MIS.CPNS05;CP thưởng",null,null,null,null,null,"223_;Hao mòn TSCĐ"]
[null,null,null,null,"VN02V00901;VB/VH/Tuyến 21B",null,"MIS.CPVT12;CP Thuê địa điểm","MIS.CPNS06;CP nhân sự thuê ngoài, thời vụ","MIS.CPNS06;CP nhân sự thuê ngoài, thời vụ",null,null,null,null,null,"231_;Bất động sản đầu tư"]
[null,null,null,null,"VN02V00902;VB/VH/Tuyến 21B/Tài xế",null,"MIS.CPVT13;BH hành khách","MIS.CPNS07;CP phúc lợi","MIS.CPNS07;CP phúc lợi",null,null,null,null,null,"232_;Hao mòn BĐS đầu tư"]
[null,null,null,null,"VN02V00903;VB/VH/Tuyến 21B/HDV",null,"MIS.CPVT14;CP Bảo hiểm tài sản","MIS.CPNS08;CP phụ cấp","MIS.CPNS08;CP phụ cấp",null,null,null,null,null,"240_;Tài sản dở dang dài hạn"]
[null,null,null,null,"VN02V01001;VB/VH/Tuyến 37",null,"MIS.CPVT15;CP Bảo hiểm vật chất","MIS.CP001;CP nhiên liệu, năng lượng","MIS.CP001;CP nhiên liệu, năng lượng",null,null,null,null,null,"250_;Các khoản đầu tư tài chính dài hạn"]
[null,null,null,null,"VN02V01002;VB/VH/Tuyến 37/Tài xế",null,"MIS.CPVT16;CP In vé, thẻ","MIS.CP002;CP công nghệ thông tin","MIS.CP002;CP công nghệ thông tin",null,null,null,null,null,"260_;Tổng tài sản dài hạn khác"]
[null,null,null,null,"VN02V01003;VB/VH/Tuyến 37/HDV",null,"MIS.CPVT17;Chi phí đền bù tổn thất khách hàng","MIS.CP003;CP điện thoại, internet","MIS.CP003;CP điện thoại, internet",null,null,null,null,null,"269_;Lợi thế thương mại"]
[null,null,null,null,"VN02V01101;VB/VH/Tuyến 125",null,"MIS.CPVT18;Chi phí hỗ trợ, chăm sóc khách hàng","MIS.CP004;CP bảo dưỡng sửa chữa","MIS.CP004;CP bảo dưỡng sửa chữa",null,null,null,null,null,"311_;Phải trả người bán ngắn hạn"]
[null,null,null,null,"VN02V01102;VB/VH/Tuyến 125/Tài xế",null,"MIS.CPVT19;Chi phí Đồng phục","MIS.CP005;CP PCCC, vật tư tiêu hao","MIS.CP005;CP PCCC, vật tư tiêu hao",null,null,null,null,null,"312_;Người mua trả tiền trước"]
[null,null,null,null,"VN02V01103;VB/VH/Tuyến 125/HDV",null,"MIS.CPVT20;Chi phí Nhân sự thuê ngoài, thời vụ","MIS.CP006;CP cầu đường, bến bãi","MIS.CP006;CP cầu đường, bến bãi",null,null,null,null,null,"313_;Thuế và các khoản phải nộp NN"]
[null,null,null,null,"VN02V08001;LN/Xưởng",null,"MIS.CPVT21;Chi phí sửa chữa trạm sạc","MIS.CP007;Phí bảo trì đường bộ","MIS.CP007;Phí bảo trì đường bộ",null,null,null,null,null,"314_;Phải trả nhân viên"]
[null,null,null,null,"VN02V09001;LN/Ban giám đốc",null,"MIS.CPVT22;Chi phí thuê xe","MIS.CP008;CP đăng kiểm","MIS.CP008;CP đăng kiểm",null,null,null,null,null,"315_;Chi phí phải trả ngắn hạn"]
[null,null,null,null,"VN02V09101;LN/P. Hành chính - Nhân sự",null,"MIS.CPVT23;Chi phí vận tải khác","MIS.CP009;CP bảo hiểm trách nhiệm dân sự","MIS.CP009;CP bảo hiểm trách nhiệm dân sự",null,null,null,null,null,"318_;Doanh thu chưa thực hiện ngắn hạn"]
[null,null,null,null,"VN02V09201;LN/P. Kế toán",null,"MIS.CPXDV01;Giá vốn phụ tùng","MIS.CP010;CP thuế đất phi nông nghiệp","MIS.CP010;CP thuế đất phi nông nghiệp",null,null,null,null,null,"319_;Các khoản phải trả ngắn hạn khác"]
[null,null,null,null,null,null,"MIS.CPXDV02;CP vật tư tiêu hao","MIS.CP011;CP thuê địa điểm","MIS.CP011;CP thuê địa điểm",null,null,null,null,null,"320_;Vay và nợ thuê tài chính ngắn hạn"]
[null,null,null,null,null,null,"MIS.CPXDV03;CP khác","MIS.CP012;CP bảo hiểm hành khách","MIS.CP012;CP bảo hiểm hành khách",null,null,null,null,null,"321_;Vay và nợ dài hạn đến hạn trả"]
[null,null,null,null,null,null,"MIS.CPSM01;Chi phí S&M","MIS.CP013;CP bảo hiểm tài sản","MIS.CP013;CP bảo hiểm tài sản",null,null,null,null,null,"331_;Phải trả người bán dài hạn"]
[null,null,null,null,null,null,"MIS.CPAG01;Chi phí công tác (CTP, vé máy bay, khách sạn, taxi công tác)","MIS.CP014;CP bảo hiểm vật chất","MIS.CP014;CP bảo hiểm vật chất",null,null,null,null,null,"336_;Doanh thu chưa thực hiện dài hạn"]
[null,null,null,null,null,null,"MIS.CPAG02;Chi phí công cụ dụng cụ vật tư tiêu hao khối hỗ trợ","MIS.CP015;CP in vé, thẻ","MIS.CP015;CP in vé, thẻ",null,null,null,null,null,"338_;Vay và nợ thuê tài chính dài hạn"]
[null,null,null,null,null,null,"MIS.CPAG03;Chi phí vận chuyển, taxi","MIS.CP016;CP đền bù tổn thất","MIS.CP016;CP đền bù tổn thất",null,null,null,null,null,"342_;Dự phòng phải trả dài hạn"]
[null,null,null,null,null,null,"MIS.CPAG04;CP Tiếp khách","MIS.CP017;CP hỗ trợ, chăm sóc khách hàng","MIS.CP017;CP hỗ trợ, chăm sóc khách hàng",null,null,null,null,null,"350_;Nợ dài hạn khác"]
[null,null,null,null,null,null,"MIS.CPAG05;Chi phí đào tạo","MIS.CP018;CP đồng phục","MIS.CP018;CP đồng phục",null,null,null,null,null,"411_;Vốn đầu tư của chủ sở hữu"]
[null,null,null,null,null,null,"MIS.CPAG06;Chi phí tuyển dụng","MIS.CP019;CP thuê xe","MIS.CP019;CP thuê xe",null,null,null,null,null,"412_;Thặng dư vốn cổ phần"]
[null,null,null,null,null,null,"MIS.CPAG07;Chi phí nhu yếu phẩm","MIS.CP020;CP vận tải khác","MIS.CP020;CP vận tải khác",null,null,null,null,null,"416_;Chênh lệch đánh giá lại tài sản"]
[null,null,null,null,null,null,"MIS.CPAG08;Chi phí văn phòng (văn phòng phẩm, in ấn, chuyển phát)","MIS.CP021;Giá vốn phụ tùng","MIS.CP021;Giá vốn phụ tùng",null,null,null,null,null,"421_;Lợi nhuận sau thuế chưa phân phối"]
[null,null,null,null,null,null,"MIS.CPAG09;Phí ngân hàng","MIS.CP022;CP vật tư tiêu hao","MIS.CP022;CP vật tư tiêu hao",null,null,null,null,null,"430_;Nguồn vốn khác"]
[null,null,null,null,null,null,"MIS.CPAG10;Thuế môn bài, thuế, Phí khác","MIS.CP023;CP thuê ngoài gia công","MIS.CP023;CP thuê ngoài gia công",null,null,null,null,null,"621_;Chi phí NPL trực tiếp"]
[null,null,null,null,null,null,"MIS.CPAG11;Phí chuyên gia, tư vấn","MIS.CP024;CP khác","MIS.CP024;CP khác",null,null,null,null,null,"622_;Chi phí NC trực tiếp"]
[null,null,null,null,null,null,"MIS.CPAG12;Chi phí làm giấy phép, giấy tờ","MIS.CP025;CP S&M","MIS.CP025;CP S&M",null,null,null,null,null,"627_;Chi phí sản xuất chung"]
[null,null,null,null,null,null,"MIS.CPAG13;Chi phí dịch vụ mua ngoài","MIS.CP026;CP công tác (CTP, vé máy bay, khách sạn, taxi công tác)","MIS.CP026;CP công tác (CTP, vé máy bay, khách sạn, taxi công tác)"]
[null,null,null,null,null,null,"MIS.CPAG14;Chi phí sửa chữa văn phòng","MIS.CP027;CP công cụ dụng cụ vật tư tiêu hao khối hỗ trợ","MIS.CP027;CP công cụ dụng cụ vật tư tiêu hao khối hỗ trợ"]
[null,null,null,null,null,null,"MIS.CPAG15;Chi phí A&G khác","MIS.CP028;CP vận chuyển, taxi","MIS.CP028;CP vận chuyển, taxi"]
[null,null,null,null,null,null,"MIS.KHHĐ;Capex hoạt động (CCDC + VP)","MIS.CP029;CP Tiếp khách","MIS.CP029;CP Tiếp khách"]
[null,null,null,null,null,null,"MIS.KHVH;Capex vận hành (Trạm sạc + nhà xưởng + thiết bị sửa chữa)","MIS.CP030;CP đào tạo","MIS.CP030;CP đào tạo"]
[null,null,null,null,null,null,"MIS.KHPTVT;Khấu hao TSCĐ Phương tiện vận tải","MIS.CP031;CP tuyển dụng","MIS.CP031;CP tuyển dụng"]
[null,null,null,null,null,null,"MIS.DTK;Thu khác","MIS.CP032;CP nhu yếu phẩm","MIS.CP032;CP nhu yếu phẩm"]
[null,null,null,null,null,null,"MIS.CPK;Chi phí khác","MIS.CP033;CP văn phòng phẩm, hành chính","MIS.CP033;CP văn phòng phẩm, hành chính"]
[null,null,null,null,null,null,"MIS.DTTC;Thu nhập tài chính","MIS.CP034;Phí ngân hàng","MIS.CP034;Phí ngân hàng"]
[null,null,null,null,null,null,"MIS.CPTC;Chi phí tài chính","MIS.CP035;Thuế môn bài, thuế, Phí khác","MIS.CP035;Thuế môn bài, thuế, Phí khác"]
[null,null,null,null,null,null,null,"MIS.CP036;CP chuyên gia, tư vấn","MIS.CP036;CP chuyên gia, tư vấn"]
[null,null,null,null,null,null,null,"MIS.CP037;CP làm giấy phép, giấy tờ","MIS.CP037;CP làm giấy phép, giấy tờ"]
[null,null,null,null,null,null,null,"MIS.CP038;CP dịch vụ mua ngoài","MIS.CP038;CP dịch vụ mua ngoài"]
[null,null,null,null,null,null,null,"MIS.CP039;CP sửa chữa văn phòng","MIS.CP039;CP sửa chữa văn phòng"]
[null,null,null,null,null,null,null,"MIS.CP040;CP điện,nước","MIS.CP040;CP điện,nước"]
[null,null,null,null,null,null,null,"MIS.CPKH01;CP khấu hao phương tiện","MIS.CPKH01;CP khấu hao phương tiện"]
[null,null,null,null,null,null,null,"MIS.CPKH02;CP khấu hao thiết bị văn phòng","MIS.CPKH02;CP khấu hao thiết bị văn phòng"]
[null,null,null,null,null,null,null,"MIS.CPKH03;CP khấu hao nhà xưởng","MIS.CPKH03;CP khấu hao nhà xưởng"]
[null,null,null,null,null,null,null,"MIS.DTTC;Thu nhập tài chính","MIS.DTTC;Thu nhập tài chính"]
[null,null,null,null,null,null,null,"MIS.CPTC;Chi phí tài chính","MIS.CPTC;Chi phí tài chính"]
[null,null,null,null,null,null,null,"MIS.DTK;Thu khác","MIS.DTK;Thu khác"]
[null,null,null,null,null,null,null,"MIS.CPK;CP khác","MIS.CPK;CP khác"]
[null,null,null,null,null,null,null,null,"HQ11;Số tuyến mở mới"]
[null,null,null,null,null,null,null,null,"HQ12;Số tuyến hoạt động"]
[null,null,null,null,null,null,null,null,"HQ21;Số xe kế hoạch"]
[null,null,null,null,null,null,null,null,"HQ22;Số xe vận doanh"]
[null,null,null,null,null,null,null,null,"HQ31;Số lượt xe vận hành"]
[null,null,null,null,null,null,null,null,"HQ32;Số lượt xe bỏ"]
[null,null,null,null,null,null,null,null,"HQ33;Số lượt xe tăng cường"]
[null,null,null,null,null,null,null,null,"HQ4;Tỷ lệ xuất bến đúng giờ"]
[null,null,null,null,null,null,null,null,"HQ5;Số km hoạt động (Xuất HĐ)"]
[null,null,null,null,null,null,null,null,"HQ51;km hoạt động có trợ giá (Xuất HĐ)"]
[null,null,null,null,null,null,null,null,"HQ52;km hoạt động không trợ giá (Xuất HĐ)"]
[null,null,null,null,null,null,null,null,"HQ6;Số km hoạt động (thực tế xe chạy)"]
[null,null,null,null,null,null,null,null,"HQ61;km hoạt động có trợ giá (thực tế xe chạy)"]
[null,null,null,null,null,null,null,null,"HQ62;km hoạt động không trợ giá (thực tế xe chạy)"]
[null,null,null,null,null,null,null,null,"NL1;Điện"]
[null,null,null,null,null,null,null,null,"NL11;Chỉ số kwh điện theo công tơ khu vực khác (ko tính công tơ trạm sạc)"]
[null,null,null,null,null,null,null,null,"NL12;Chỉ số kwh điện theo công tơ khu vực trạm sạc"]
[null,null,null,null,null,null,null,null,"NL121;Chỉ số kwh điện theo phần mềm trạm sạc"]
[null,null,null,null,null,null,null,null,"NL122;Kwh điện chênh lệch giữa công tơ - phần mềm"]
[null,null,null,null,null,null,null,null,"NL2;Nước"]
[null,null,null,null,null,null,null,null,"NL21;Nước tiêu thụ tại khu vực nhà rửa xe"]
[null,null,null,null,null,null,null,null,"NL23;Số lần rửa xe"]
[null,null,null,null,null,null,null,null,"NS1;Định biên nhân sự toàn cty"]
[null,null,null,null,null,null,null,null,"NS3;Định biên nhân sự khối vận hành trực tiếp"]
[null,null,null,null,null,null,null,null,"NS5;Định biên nhân sự khối gián tiếp"]
[null,null,null,null,null,null,null,null,"NS8;Tổng số lượng nhân sự lũy kế"]
[null,null,null,null,null,null,null,null,"VH11;Khách vé lượt"]
[null,null,null,null,null,null,null,null,"VH12;Khách vé tháng 1 tuyến"]
[null,null,null,null,null,null,null,null,"VH13;Khách vé tháng 1 tuyến"]
[null,null,null,null,null,null,null,null,"VH21;Doanh thu vé lượt"]
[null,null,null,null,null,null,null,null,"VH22;Doanh thu vé tháng 1 tuyến"]
[null,null,null,null,null,null,null,null,"VH23;Doanh thu vé tháng liên tuyến"]
[null,null,null,null,null,null,null,null,"NL131;Đơn giá điện bình quân"]
[null,null,null,null,null,null,null,null,"VH24;Doanh thu trợ giá"]
[null,null,null,null,null,null,null,null,"NL132;Điện cao điểm"]
[null,null,null,null,null,null,null,null,"NL133;Điện bình thường"]
[null,null,null,null,null,null,null,null,"NL134;Điện thấp điểm"]
[null,null,null,null,null,null,null,null,"HQ34;Số lượt xe không được nghiệm thu (xe rỗng_PQ)"]
[null,null,null,null,null,null,null,null,"HQ20;Số xe VinBus có"]
[null,null,null,null,null,null,null,null,"BD1;Lượt xe ô tô vào xưởng"]
[null,null,null,null,null,null,null,null,"BD2;Lượt xe máy vào xưởng"]
[null,null,null,null,null,null,null,null,"BD3;Lượt xe ô tô bảo hành"]
[null,null,null,null,null,null,null,null,"BD4;Lượt xe máy bảo hành"]
[null,null,null,null,null,null,null,null,"BD5;Số KTV"]
[null,null,null,null,null,null,null,null,"BD11;Lượt xe Buýt vào xưởng"]
[null,null,null,null,null,null,null,null,"BD31;Lượt xe Buýt bảo hành"]

{"sheet":"✗","index":1,"n_rows":15,"n_cols":2,"rows_kept":15,"cut":false,"hidden":true,"merged":[]}
[null,"Mã trùng"]
["Site",{"$f":"IFERROR(TRANSPOSE(_xlfn.LET(_xlpm.i,L_SI[Site],_xlfn._xlws.FILTER(_xlfn.UNIQUE(_xlpm.i),COUNTIFS(_xlpm.i,_xlfn.UNIQUE(_xlpm.i))>1))),0)","v":0}]
["Fund center",{"$f":"IFERROR(TRANSPOSE(_xlfn.LET(_xlpm.i,L_FC[Fund center],_xlfn._xlws.FILTER(_xlfn.UNIQUE(_xlpm.i),COUNTIFS(_xlpm.i,_xlfn.UNIQUE(_xlpm.i))>1))),0)","v":0}]
["Profit center",{"$f":"IFERROR(TRANSPOSE(_xlfn.LET(_xlpm.i,L_PC[Profit center],_xlfn._xlws.FILTER(_xlfn.UNIQUE(_xlpm.i),COUNTIFS(_xlpm.i,_xlfn.UNIQUE(_xlpm.i))>1))),0)","v":0}]
["{Cost center}",{"$f":"IFERROR(TRANSPOSE(_xlfn.LET(_xlpm.i,L_CC[Cost center],_xlfn._xlws.FILTER(_xlfn.UNIQUE(_xlpm.i),COUNTIFS(_xlpm.i,_xlfn.UNIQUE(_xlpm.i))>1))),0)","v":0}]
["MIS code",{"$f":"IFERROR(TRANSPOSE(_xlfn.LET(_xlpm.i,L_Mis[MIS code],_xlfn._xlws.FILTER(_xlfn.UNIQUE(_xlpm.i),COUNTIFS(_xlpm.i,_xlfn.UNIQUE(_xlpm.i))>1))),0)","v":0}]
["{Commit}",{"$f":"IFERROR(TRANSPOSE(_xlfn.LET(_xlpm.i,L_CI[CI code],_xlfn._xlws.FILTER(_xlfn.UNIQUE(_xlpm.i),COUNTIFS(_xlpm.i,_xlfn.UNIQUE(_xlpm.i))>1))),0)","v":0}]
["{Object}",{"$f":"IFERROR(TRANSPOSE(_xlfn.LET(_xlpm.i,L_OJ[Object],_xlfn._xlws.FILTER(_xlfn.UNIQUE(_xlpm.i),COUNTIFS(_xlpm.i,_xlfn.UNIQUE(_xlpm.i))>1))),0)","v":0}]
["Asset",{"$f":"IFERROR(TRANSPOSE(_xlfn.LET(_xlpm.i,L_AS[Asset type],_xlfn._xlws.FILTER(_xlfn.UNIQUE(_xlpm.i),COUNTIFS(_xlpm.i,_xlfn.UNIQUE(_xlpm.i))>1))),0)","v":0}]
["Statistic",{"$f":"IFERROR(TRANSPOSE(_xlfn.LET(_xlpm.i,L_ST[Statistics],_xlfn._xlws.FILTER(_xlfn.UNIQUE(_xlpm.i),COUNTIFS(_xlpm.i,_xlfn.UNIQUE(_xlpm.i))>1))),0)","v":0}]
["Financial",{"$f":"IFERROR(TRANSPOSE(_xlfn.LET(_xlpm.i,L_FS[FS code],_xlfn._xlws.FILTER(_xlfn.UNIQUE(_xlpm.i),COUNTIFS(_xlpm.i,_xlfn.UNIQUE(_xlpm.i))>1))),0)","v":0}]
["Trust",{"$f":"IFERROR(TRANSPOSE(_xlfn.LET(_xlpm.i,L_TR[Trust],_xlfn._xlws.FILTER(_xlfn.UNIQUE(_xlpm.i),COUNTIFS(_xlpm.i,_xlfn.UNIQUE(_xlpm.i))>1))),0)","v":0}]
["Sub",{"$f":"IFERROR(TRANSPOSE(_xlfn.LET(_xlpm.i,L_SUB[Sub code],_xlfn._xlws.FILTER(_xlfn.UNIQUE(_xlpm.i),COUNTIFS(_xlpm.i,_xlfn.UNIQUE(_xlpm.i))>1))),0)","v":0}]
["Fund",{"$f":"IFERROR(TRANSPOSE(_xlfn.LET(_xlpm.i,L_FC[Fund center],_xlfn._xlws.FILTER(_xlfn.UNIQUE(_xlpm.i),COUNTIFS(_xlpm.i,_xlfn.UNIQUE(_xlpm.i))>1))),0)","v":0}]
["Other"]

{"sheet":"Site","index":2,"n_rows":32,"n_cols":7,"rows_kept":32,"cut":false,"hidden":false,"merged":[]}
[]
["𝓛𝓲𝓮𝓷𝓝𝓲𝓷𝓱",null,"SITE (CƠ SỞ KINH DOANH)",null,"Là địa điểm cụ thể nơi doanh nghiệp hoạt động, có thể là nhà máy, cửa hàng, văn phòng hoặc chi nhánh, depot"]
["𝓑𝓾𝓼"]
[]
[null,"_","Site","Name","Properties","#","_"]
["Site",null,"_","_"]
[null,null,"HO","Head Office",null,1]
["Fund center",null,"LN","Liên Ninh",null,2]
[]
["Profit center"]
[]
["Cost center"]
[]
["MIS code"]
[]
["Commit"]
[]
["Object"]
[]
["Asset"]
[]
["Statistic"]
[]
["Financial"]
[]
["Trust"]
[]
["Sub"]
[]
["Fund"]
[]
["Other"]

{"sheet":"Fund center","index":3,"n_rows":32,"n_cols":8,"rows_kept":32,"cut":false,"hidden":false,"merged":[]}
[{"$f":"Range2(L_FC[Site])","v":"E6:E10"}]
[{"$f":"Site!A2","v":"𝓛𝓲𝓮𝓷𝓝𝓲𝓷𝓱"},null,"FUND CENTER (KHỐI LẬP NGÂN SÁCH)",null,"Trong các công ty có quy mô lớn, việc chia thành các khối ngân sách sẽ giúp việc điều phối lập và quản lý ngân sách hiệu quả hơn. Fund center mang ý nghĩa phân công, tổ chức lập và quản lý ngân sách."]
[{"$f":"Site!A3","v":"𝓑𝓾𝓼"},null,null,null,"Thường hay thấy nhất là ở khối HO chia các nhóm bộ phận chuyên môn thành các khối, trong khi ở các cơ sở vận hành thì cơ sở đó cũng đồng thời là một khối. "]
[]
[null,"_","Fund center","FC name","Site","Properties","#","_"]
["Site",null,"VN02V00101","LN/Vận hành","LN",null,1]
[null,null,"VN02V08001","LN/Xưởng","LN",null,2]
["Fund center",null,"VN02V09001","LN/Ban giám đốc","LN",null,3]
[null,null,"VN02V09101","LN/P. Hành chính - Nhân sự","LN",null,4]
["Profit center",null,"VN02V09201","LN/P. Kế toán","LN",null,5]
[]
["Cost center"]
[]
["MIS code"]
[]
["Commit"]
[]
["Object"]
[]
["Asset"]
[]
["Statistic"]
[]
["Financial"]
[]
["Trust"]
[]
["Sub"]
[]
["Fund"]
[]
["Other"]

{"sheet":"Profit center","index":4,"n_rows":38,"n_cols":8,"rows_kept":38,"cut":false,"hidden":false,"merged":[]}
[{"$f":"Range2(L_PC[Site])","v":"E6:E38"}]
[{"$f":"Site!A2","v":"𝓛𝓲𝓮𝓷𝓝𝓲𝓷𝓱"},null,"PROFIT CENTER (TRUNG TÂM LỢI NHUẬN)",null,null,"Đơn vị trong doanh nghiệp có trách nhiệm tạo ra doanh thu và lợi nhuận, có ranh giới về doanh thu- chi phí có thể phân tách được, để quản trị và phân tích kinh doanh. Profit center được hình thành bằng cách nhóm các cost-center"]
[{"$f":"Site!A3","v":"𝓑𝓾𝓼"},null,null,null,null,"Profit center là mã để tổng hợp ngân sách theo chiều bộ phận, không phải mã để lập ngân sách."]
[]
[null,"_","Profit center","PC name","Site","Properties","#","_"]
["Site",null,"VN02V00101","VB/Vận hành",{"$f":"_xlfn.XLOOKUP(L_PC[[#This Row],[Profit center]],L_CC[Cost center],L_CC[Site])","v":"LN"},null,1]
[null,null,"VN02V00202","VB/KSCL & ANAT",{"$f":"_xlfn.XLOOKUP(L_PC[[#This Row],[Profit center]],L_CC[Cost center],L_CC[Site])","v":"LN"},null,2]
["Fund center",null,"VN02V00301","VB/VH/Tuyến 08A",{"$f":"_xlfn.XLOOKUP(L_PC[[#This Row],[Profit center]],L_CC[Cost center],L_CC[Site])","v":"LN"},null,3]
[null,null,"VN02V00302","VB/VH/Tuyến 08A/Tài xế",{"$f":"_xlfn.XLOOKUP(L_PC[[#This Row],[Profit center]],L_CC[Cost center],L_CC[Site])","v":"LN"},null,4]
["Profit center",null,"VN02V00303","VB/VH/Tuyến 08A/HDV",{"$f":"_xlfn.XLOOKUP(L_PC[[#This Row],[Profit center]],L_CC[Cost center],L_CC[Site])","v":"LN"},null,5]
[null,null,"VN02V00401","VB/VH/Tuyến 08B",{"$f":"_xlfn.XLOOKUP(L_PC[[#This Row],[Profit center]],L_CC[Cost center],L_CC[Site])","v":"LN"},null,6]
["Cost center",null,"VN02V00402","VB/VH/Tuyến 08B/Tài xế",{"$f":"_xlfn.XLOOKUP(L_PC[[#This Row],[Profit center]],L_CC[Cost center],L_CC[Site])","v":"LN"},null,7]
[null,null,"VN02V00403","VB/VH/Tuyến 08B/HDV",{"$f":"_xlfn.XLOOKUP(L_PC[[#This Row],[Profit center]],L_CC[Cost center],L_CC[Site])","v":"LN"},null,8]
["MIS code",null,"VN02V00501","VB/VH/Tuyến 09A",{"$f":"_xlfn.XLOOKUP(L_PC[[#This Row],[Profit center]],L_CC[Cost center],L_CC[Site])","v":"LN"},null,9]
[null,null,"VN02V00502","VB/VH/Tuyến 09A/Tài xế",{"$f":"_xlfn.XLOOKUP(L_PC[[#This Row],[Profit center]],L_CC[Cost center],L_CC[Site])","v":"LN"},null,10]
["Commit",null,"VN02V00503","VB/VH/Tuyến 09A/HDV",{"$f":"_xlfn.XLOOKUP(L_PC[[#This Row],[Profit center]],L_CC[Cost center],L_CC[Site])","v":"LN"},null,11]
[null,null,"VN02V00601","VB/VH/Tuyến 09B",{"$f":"_xlfn.XLOOKUP(L_PC[[#This Row],[Profit center]],L_CC[Cost center],L_CC[Site])","v":"LN"},null,12]
["Object",null,"VN02V00602","VB/VH/Tuyến 09B/Tài xế",{"$f":"_xlfn.XLOOKUP(L_PC[[#This Row],[Profit center]],L_CC[Cost center],L_CC[Site])","v":"LN"},null,13]
[null,null,"VN02V00603","VB/VH/Tuyến 09B/HDV",{"$f":"_xlfn.XLOOKUP(L_PC[[#This Row],[Profit center]],L_CC[Cost center],L_CC[Site])","v":"LN"},null,14]
["Asset",null,"VN02V00701","VB/VH/Tuyến 19",{"$f":"_xlfn.XLOOKUP(L_PC[[#This Row],[Profit center]],L_CC[Cost center],L_CC[Site])","v":"LN"},null,15]
[null,null,"VN02V00702","VB/VH/Tuyến 19/Tài xế",{"$f":"_xlfn.XLOOKUP(L_PC[[#This Row],[Profit center]],L_CC[Cost center],L_CC[Site])","v":"LN"},null,16]
["Statistic",null,"VN02V00703","VB/VH/Tuyến 19/HDV",{"$f":"_xlfn.XLOOKUP(L_PC[[#This Row],[Profit center]],L_CC[Cost center],L_CC[Site])","v":"LN"},null,17]
[null,null,"VN02V00801","VB/VH/Tuyến 21A",{"$f":"_xlfn.XLOOKUP(L_PC[[#This Row],[Profit center]],L_CC[Cost center],L_CC[Site])","v":"LN"},null,18]
["Financial",null,"VN02V00802","VB/VH/Tuyến 21A/Tài xế",{"$f":"_xlfn.XLOOKUP(L_PC[[#This Row],[Profit center]],L_CC[Cost center],L_CC[Site])","v":"LN"},null,19]
[null,null,"VN02V00803","VB/VH/Tuyến 21A/HDV",{"$f":"_xlfn.XLOOKUP(L_PC[[#This Row],[Profit center]],L_CC[Cost center],L_CC[Site])","v":"LN"},null,20]
["Trust",null,"VN02V00901","VB/VH/Tuyến 21B",{"$f":"_xlfn.XLOOKUP(L_PC[[#This Row],[Profit center]],L_CC[Cost center],L_CC[Site])","v":"LN"},null,21]
[null,null,"VN02V00902","VB/VH/Tuyến 21B/Tài xế",{"$f":"_xlfn.XLOOKUP(L_PC[[#This Row],[Profit center]],L_CC[Cost center],L_CC[Site])","v":"LN"},null,22]
["Sub",null,"VN02V00903","VB/VH/Tuyến 21B/HDV",{"$f":"_xlfn.XLOOKUP(L_PC[[#This Row],[Profit center]],L_CC[Cost center],L_CC[Site])","v":"LN"},null,23]
[null,null,"VN02V01001","VB/VH/Tuyến 37",{"$f":"_xlfn.XLOOKUP(L_PC[[#This Row],[Profit center]],L_CC[Cost center],L_CC[Site])","v":"LN"},null,24]
["Fund",null,"VN02V01002","VB/VH/Tuyến 37/Tài xế",{"$f":"_xlfn.XLOOKUP(L_PC[[#This Row],[Profit center]],L_CC[Cost center],L_CC[Site])","v":"LN"},null,25]
[null,null,"VN02V01003","VB/VH/Tuyến 37/HDV",{"$f":"_xlfn.XLOOKUP(L_PC[[#This Row],[Profit center]],L_CC[Cost center],L_CC[Site])","v":"LN"},null,26]
["Other",null,"VN02V01101","VB/VH/Tuyến 125",{"$f":"_xlfn.XLOOKUP(L_PC[[#This Row],[Profit center]],L_CC[Cost center],L_CC[Site])","v":"LN"},null,27]
[null,null,"VN02V01102","VB/VH/Tuyến 125/Tài xế",{"$f":"_xlfn.XLOOKUP(L_PC[[#This Row],[Profit center]],L_CC[Cost center],L_CC[Site])","v":"LN"},null,28]
[null,null,"VN02V01103","VB/VH/Tuyến 125/HDV",{"$f":"_xlfn.XLOOKUP(L_PC[[#This Row],[Profit center]],L_CC[Cost center],L_CC[Site])","v":"LN"},null,29]
[null,null,"VN02V08001","LN/Xưởng",{"$f":"_xlfn.XLOOKUP(L_PC[[#This Row],[Profit center]],L_CC[Cost center],L_CC[Site])","v":"HO"},null,30]
[null,null,"VN02V09001","LN/Ban giám đốc",{"$f":"_xlfn.XLOOKUP(L_PC[[#This Row],[Profit center]],L_CC[Cost center],L_CC[Site])","v":"HO"},null,31]
[null,null,"VN02V09101","LN/P. Hành chính - Nhân sự",{"$f":"_xlfn.XLOOKUP(L_PC[[#This Row],[Profit center]],L_CC[Cost center],L_CC[Site])","v":"HO"},null,32]
[null,null,"VN02V09201","LN/P. Kế toán",{"$f":"_xlfn.XLOOKUP(L_PC[[#This Row],[Profit center]],L_CC[Cost center],L_CC[Site])","v":"HO"},null,33]

{"sheet":"Cost center","index":5,"n_rows":38,"n_cols":16,"rows_kept":38,"cut":false,"hidden":false,"merged":[]}
[{"$f":"Range2(L_CC[[Site]:[Priority CI]])","v":"E6:I38"}]
[{"$f":"Site!A2","v":"𝓛𝓲𝓮𝓷𝓝𝓲𝓷𝓱"},null,"COST CENTER (BỘ PHẬN NGÂN SÁCH)",null,"Là bộ phận phát sinh chi phí trong doanh nghiệp, thông thường được thiết lập gắn liền với bộ phận theo tổ chức của doanh nghiệp để thuận tiện lập và quản lý ngân sách. Cost center mang ý nghĩa là bộ phận (center) hơn nghĩa chi phí (cost), nên nó cũng được sử dụng để ghi nhận doanh thu"]
[{"$f":"Site!A3","v":"𝓑𝓾𝓼"},null,null,null,"Cost center là mã bắt buộc, là mã được sử dụng để lập ngân sách."]
[null,null,null,null,"⏬","⏬","⏬","⏬","⏬"]
[null,"_","Cost center","CC name","Site","Fund center","PC center","FS code","Priority CI","Faculty","Properties","#","_","FC name","PC name","FS name"]
["Site",null,"VN02V00101","VB/Vận hành","LN","VN02V00101","VN02V00101",null,null,null,null,null,null,{"$f":"_xlfn.XLOOKUP(L_CC[Fund center],L_FC[Fund center],L_FC[FC name],\"-\")","v":"LN/Vận hành"},{"$f":"_xlfn.XLOOKUP(L_CC[PC center],L_PC[Profit center],L_PC[PC name],\"-\")","v":"VB/Vận hành"},{"$f":"_xlfn.XLOOKUP(L_CC[FS code],L_FS[FS code],L_FS[FS name],\"-\")","v":"-"}]
[null,null,"VN02V00202","VB/KSCL & ANAT","LN","VN02V00101","VN02V00202",null,null,null,null,null,null,"LN/Vận hành","VB/KSCL & ANAT","-"]
["Fund center",null,"VN02V00301","VB/VH/Tuyến 08A","LN","VN02V00101","VN02V00301",null,null,null,null,null,null,"LN/Vận hành","VB/VH/Tuyến 08A","-"]
[null,null,"VN02V00302","VB/VH/Tuyến 08A/Tài xế","LN","VN02V00101","VN02V00302",null,null,null,null,null,null,"LN/Vận hành","VB/VH/Tuyến 08A/Tài xế","-"]
["Profit center",null,"VN02V00303","VB/VH/Tuyến 08A/HDV","LN","VN02V00101","VN02V00303",null,null,null,null,null,null,"LN/Vận hành","VB/VH/Tuyến 08A/HDV","-"]
[null,null,"VN02V00401","VB/VH/Tuyến 08B","LN","VN02V00101","VN02V00401",null,null,null,null,null,null,"LN/Vận hành","VB/VH/Tuyến 08B","-"]
["Cost center",null,"VN02V00402","VB/VH/Tuyến 08B/Tài xế","LN","VN02V00101","VN02V00402",null,null,null,null,null,null,"LN/Vận hành","VB/VH/Tuyến 08B/Tài xế","-"]
[null,null,"VN02V00403","VB/VH/Tuyến 08B/HDV","LN","VN02V00101","VN02V00403",null,null,null,null,null,null,"LN/Vận hành","VB/VH/Tuyến 08B/HDV","-"]
["MIS code",null,"VN02V00501","VB/VH/Tuyến 09A","LN","VN02V00101","VN02V00501",null,null,null,null,null,null,"LN/Vận hành","VB/VH/Tuyến 09A","-"]
[null,null,"VN02V00502","VB/VH/Tuyến 09A/Tài xế","LN","VN02V00101","VN02V00502",null,null,null,null,null,null,"LN/Vận hành","VB/VH/Tuyến 09A/Tài xế","-"]
["Commit",null,"VN02V00503","VB/VH/Tuyến 09A/HDV","LN","VN02V00101","VN02V00503",null,null,null,null,null,null,"LN/Vận hành","VB/VH/Tuyến 09A/HDV","-"]
[null,null,"VN02V00601","VB/VH/Tuyến 09B","LN","VN02V00101","VN02V00601",null,null,null,null,null,null,"LN/Vận hành","VB/VH/Tuyến 09B","-"]
["Object",null,"VN02V00602","VB/VH/Tuyến 09B/Tài xế","LN","VN02V00101","VN02V00602",null,null,null,null,null,null,"LN/Vận hành","VB/VH/Tuyến 09B/Tài xế","-"]
[null,null,"VN02V00603","VB/VH/Tuyến 09B/HDV","LN","VN02V00101","VN02V00603",null,null,null,null,null,null,"LN/Vận hành","VB/VH/Tuyến 09B/HDV","-"]
["Asset",null,"VN02V00701","VB/VH/Tuyến 19","LN","VN02V00101","VN02V00701",null,null,null,null,null,null,"LN/Vận hành","VB/VH/Tuyến 19","-"]
[null,null,"VN02V00702","VB/VH/Tuyến 19/Tài xế","LN","VN02V00101","VN02V00702",null,null,null,null,null,null,"LN/Vận hành","VB/VH/Tuyến 19/Tài xế","-"]
["Statistic",null,"VN02V00703","VB/VH/Tuyến 19/HDV","LN","VN02V00101","VN02V00703",null,null,null,null,null,null,"LN/Vận hành","VB/VH/Tuyến 19/HDV","-"]
[null,null,"VN02V00801","VB/VH/Tuyến 21A","LN","VN02V00101","VN02V00801",null,null,null,null,null,null,"LN/Vận hành","VB/VH/Tuyến 21A","-"]
["Financial",null,"VN02V00802","VB/VH/Tuyến 21A/Tài xế","LN","VN02V00101","VN02V00802",null,null,null,null,null,null,"LN/Vận hành","VB/VH/Tuyến 21A/Tài xế","-"]
[null,null,"VN02V00803","VB/VH/Tuyến 21A/HDV","LN","VN02V00101","VN02V00803",null,null,null,null,null,null,"LN/Vận hành","VB/VH/Tuyến 21A/HDV","-"]
["Trust",null,"VN02V00901","VB/VH/Tuyến 21B","LN","VN02V00101","VN02V00901",null,null,null,null,null,null,"LN/Vận hành","VB/VH/Tuyến 21B","-"]
[null,null,"VN02V00902","VB/VH/Tuyến 21B/Tài xế","LN","VN02V00101","VN02V00902",null,null,null,null,null,null,"LN/Vận hành","VB/VH/Tuyến 21B/Tài xế","-"]
["Sub",null,"VN02V00903","VB/VH/Tuyến 21B/HDV","LN","VN02V00101","VN02V00903",null,null,null,null,null,null,"LN/Vận hành","VB/VH/Tuyến 21B/HDV","-"]
[null,null,"VN02V01001","VB/VH/Tuyến 37","LN","VN02V00101","VN02V01001",null,null,null,null,null,null,"LN/Vận hành","VB/VH/Tuyến 37","-"]
["Fund",null,"VN02V01002","VB/VH/Tuyến 37/Tài xế","LN","VN02V00101","VN02V01002",null,null,null,null,null,null,"LN/Vận hành","VB/VH/Tuyến 37/Tài xế","-"]
[null,null,"VN02V01003","VB/VH/Tuyến 37/HDV","LN","VN02V00101","VN02V01003",null,null,null,null,null,null,"LN/Vận hành","VB/VH/Tuyến 37/HDV","-"]
["Other",null,"VN02V01101","VB/VH/Tuyến 125","LN","VN02V00101","VN02V01101",null,null,null,null,null,null,"LN/Vận hành","VB/VH/Tuyến 125","-"]
[null,null,"VN02V01102","VB/VH/Tuyến 125/Tài xế","LN","VN02V00101","VN02V01102",null,null,null,null,null,null,"LN/Vận hành","VB/VH/Tuyến 125/Tài xế","-"]
[null,null,"VN02V01103","VB/VH/Tuyến 125/HDV","LN","VN02V00101","VN02V01103",null,null,null,null,null,null,"LN/Vận hành","VB/VH/Tuyến 125/HDV","-"]
[null,null,"VN02V08001","LN/Xưởng","HO","VN02V08001","VN02V08001",null,null,null,null,null,null,"LN/Xưởng","LN/Xưởng","-"]
[null,null,"VN02V09001","LN/Ban giám đốc","HO","VN02V09001","VN02V09001",null,null,null,null,null,null,"LN/Ban giám đốc","LN/Ban giám đốc","-"]
[null,null,"VN02V09101","LN/P. Hành chính - Nhân sự","HO","VN02V09101","VN02V09101",null,null,null,null,null,null,"LN/P. Hành chính - Nhân sự","LN/P. Hành chính - Nhân sự","-"]
[null,null,"VN02V09201","LN/P. Kế toán","HO","VN02V09201","VN02V09201",null,null,null,null,null,null,"LN/P. Kế toán","LN/P. Kế toán","-"]

{"sheet":"MIS code","index":6,"n_rows":63,"n_cols":8,"rows_kept":63,"cut":false,"hidden":false,"merged":[]}
[{"$f":"Range2(L_Mis[Allocate])","v":"E6:E63"}]
[{"$f":"Site!A2","v":"𝓛𝓲𝓮𝓷𝓝𝓲𝓷𝓱"},null,"MIS CODE (MÃ LẬP BÁO CÁO QUẢN TRỊ)",null,"Là danh mục mã được phân loại để tổng hợp trình bày số liệu kết quả kinh doanh quản trị."]
[{"$f":"Site!A3","v":"𝓑𝓾𝓼"},null,null,null,"MIS code là để tổng hợp ngân sách theo chiều khoản mục, không phải là mã để lập ngân sách. Mã MIS được tính từ mã Commit (CI). Trường hợp đơn giản có thể map 1 mã MIS = 1 mã CI"]
[null,null,{"$f":"[1]!RandBetweenExclude(100,999,L_Mis[MIS code])","v":407},null,"⏬"]
[null,"_","MIS code","MIS name","Allocate","Properties","#","_"]
["Site",null,"MIS.CPNS010","Chi phí lương"]
[null,null,"MIS.CPNS011","Chi phí lương ngoài giờ"]
["Fund center",null,"MIS.CPNS012","Chi phí lương tháng 13"]
[null,null,"MIS.CPNS02","Chi phí thưởng"]
["Profit center",null,"MIS.CPNS03","Chi phí BHXH, BHYT, BHTN"]
[null,null,"MIS.CPNS041","Chi phí phúc lợi 4,5tr"]
["Cost center",null,"MIS.CPNS042","Phúc lợi HĐ tập thể, teambuilding"]
[null,null,"MIS.CPNS043","Phúc lợi khám sức khỏe"]
["MIS code",null,"MIS.CPNS044","Phúc lợi BH Sức khỏe"]
[null,null,"MIS.CPVT01","Chi phí điện Ebus"]
["Commit",null,"MIS.CPVT02","Chi phí công nghệ thông tin"]
[null,null,"MIS.CPVT03","Chi phí điện thoại, internet"]
["Object",null,"MIS.CPVT04","CP BDSC"]
[null,null,"MIS.CPVT05","CP bảo trì, PCCC, vật tư tiêu hao"]
["Asset",null,"MIS.CPVT06","Phí cầu đường, bến bãi"]
[null,null,"MIS.CPVT07","Chi phí duy trì xe"]
["Statistic",null,"MIS.CPVT08","Phí bảo trì đường bộ"]
[null,null,"MIS.CPVT09","Đăng kiểm (khám xe)"]
["Financial",null,"MIS.CPVT10","CP Bảo hiểm trách nhiệm dân sự"]
[null,null,"MIS.CPVT11","Chi phí thuế đất nông nghiệp"]
["Trust",null,"MIS.CPVT12","CP Thuê địa điểm"]
[null,null,"MIS.CPVT13","BH hành khách"]
["Sub",null,"MIS.CPVT14","CP Bảo hiểm tài sản"]
[null,null,"MIS.CPVT15","CP Bảo hiểm vật chất"]
["Fund",null,"MIS.CPVT16","CP In vé, thẻ"]
[null,null,"MIS.CPVT17","Chi phí đền bù tổn thất khách hàng"]
["Other",null,"MIS.CPVT18","Chi phí hỗ trợ, chăm sóc khách hàng"]
[null,null,"MIS.CPVT19","Chi phí Đồng phục"]
[null,null,"MIS.CPVT20","Chi phí Nhân sự thuê ngoài, thời vụ"]
[null,null,"MIS.CPVT21","Chi phí sửa chữa trạm sạc"]
[null,null,"MIS.CPVT22","Chi phí thuê xe"]
[null,null,"MIS.CPVT23","Chi phí vận tải khác"]
[null,null,"MIS.CPXDV01","Giá vốn phụ tùng"]
[null,null,"MIS.CPXDV02","CP vật tư tiêu hao"]
[null,null,"MIS.CPXDV03","CP khác"]
[null,null,"MIS.CPSM01","Chi phí S&M"]
[null,null,"MIS.CPAG01","Chi phí công tác (CTP, vé máy bay, khách sạn, taxi công tác)"]
[null,null,"MIS.CPAG02","Chi phí công cụ dụng cụ vật tư tiêu hao khối hỗ trợ"]
[null,null,"MIS.CPAG03","Chi phí vận chuyển, taxi"]
[null,null,"MIS.CPAG04","CP Tiếp khách"]
[null,null,"MIS.CPAG05","Chi phí đào tạo"]
[null,null,"MIS.CPAG06","Chi phí tuyển dụng"]
[null,null,"MIS.CPAG07","Chi phí nhu yếu phẩm"]
[null,null,"MIS.CPAG08","Chi phí văn phòng (văn phòng phẩm, in ấn, chuyển phát)"]
[null,null,"MIS.CPAG09","Phí ngân hàng"]
[null,null,"MIS.CPAG10","Thuế môn bài, thuế, Phí khác"]
[null,null,"MIS.CPAG11","Phí chuyên gia, tư vấn"]
[null,null,"MIS.CPAG12","Chi phí làm giấy phép, giấy tờ"]
[null,null,"MIS.CPAG13","Chi phí dịch vụ mua ngoài"]
[null,null,"MIS.CPAG14","Chi phí sửa chữa văn phòng"]
[null,null,"MIS.CPAG15","Chi phí A&G khác"]
[null,null,"MIS.KHHĐ","Capex hoạt động (CCDC + VP)"]
[null,null,"MIS.KHVH","Capex vận hành (Trạm sạc + nhà xưởng + thiết bị sửa chữa)"]
[null,null,"MIS.KHPTVT","Khấu hao TSCĐ Phương tiện vận tải"]
[null,null,"MIS.DTK","Thu khác"]
[null,null,"MIS.CPK","Chi phí khác"]
[null,null,"MIS.DTTC","Thu nhập tài chính"]
[null,null,"MIS.CPTC","Chi phí tài chính"]

{"sheet":"Commit","index":7,"n_rows":75,"n_cols":13,"rows_kept":75,"cut":false,"hidden":false,"merged":[]}
[{"$f":"Range2(L_CI[[CI type]:[FS code]])","v":"E6:G75"}]
[{"$f":"Site!A2","v":"𝓛𝓲𝓮𝓷𝓝𝓲𝓷𝓱"},null,"COMMIT (MÃ KHOẢN MỤC)",null,"Là danh mục chi tiết được sử dụng để lập ngân sách và kiểm soát ngân sách"]
[{"$f":"Site!A3","v":"𝓑𝓾𝓼"}]
[null,null,null,null,"⏬","⏬","⏬"]
[null,"_","CI code","CI name","CI type","MIS code","FS code","Properties","#","_","MIS name"]
["Site",null,"MIS.DT001","Doanh thu bán vé","Doanh thu","MIS.DT001","001_",null,1,null,{"$f":"_xlfn.XLOOKUP(L_CI[MIS code],L_Mis[MIS code],L_Mis[MIS name],\"-\")","v":"-"}]
[null,null,"MIS.DT002","Doanh thu trợ giá ","Doanh thu","MIS.DT002","001_",null,2,null,"-"]
["Fund center",null,"MIS.DT003","Doanh thu quảng cáo","Doanh thu","MIS.DT003","001_",null,3,null,"-"]
[null,null,"MIS.DT004","Doanh thu cho thuê tài sản","Doanh thu","MIS.DT004","001_",null,4,null,"-"]
["Profit center",null,"MIS.DT005","Doanh thu hợp tác kinh doanh","Doanh thu","MIS.DT005","001_",null,5,null,"-"]
[null,null,"MIS.DT006","Doanh thu trông giữ xe","Doanh thu","MIS.DT006","001_",null,6,null,"-"]
["Cost center",null,"MIS.DT007","Doanh thu sửa chữa bảo dưỡng","Doanh thu","MIS.DT007","001_",null,7,null,"-"]
[null,null,"MIS.DT008","Doanh thu bán phụ tùng","Doanh thu","MIS.DT008","001_",null,8,null,"-"]
["MIS code",null,"MIS.DT009","Doanh thu bán xăng dầu","Doanh thu","MIS.DT009","001_",null,9,null,"-"]
[null,null,"MIS.DT010","Doanh thu đào tạo lái xe","Doanh thu","MIS.DT010","001_",null,10,null,"-"]
["Commit",null,"MIS.DT011","Doanh thu sát hạch lái xe","Doanh thu","MIS.DT011","001_",null,11,null,"-"]
[null,null,"MIS.DT012","Doanh thu cho thuê xe","Doanh thu","MIS.DT012","001_",null,12,null,"-"]
["Object",null,"MIS.DT013","Doanh thu hoạt động du lịch","Doanh thu","MIS.DT013","001_",null,13,null,"-"]
[null,null,"MIS.DT014","Doanh thu dịch vụ sạc pin","Doanh thu","MIS.DT014","001_",null,14,null,"-"]
["Asset",null,"MIS.DT015","Doanh thu dịch vụ khác","Doanh thu","MIS.DT015","001_",null,15,null,"-"]
[null,null,"MIS.CPNS01","CP lương chính","Chi phí","MIS.CPNS01","011_",null,16,null,"-"]
["Statistic",null,"MIS.CPNS02","CP lương ngoài giờ","Chi phí","MIS.CPNS02","011_",null,17,null,"Chi phí thưởng"]
[null,null,"MIS.CPNS03","CP lương tháng 13","Chi phí","MIS.CPNS03","011_",null,18,null,"Chi phí BHXH, BHYT, BHTN"]
["Financial",null,"MIS.CPNS04","CP BHXH, BHYT, BHTN","Chi phí","MIS.CPNS04","011_",null,19,null,"-"]
[null,null,"MIS.CPNS05","CP thưởng","Chi phí","MIS.CPNS05","011_",null,20,null,"-"]
["Trust",null,"MIS.CPNS06","CP nhân sự thuê ngoài, thời vụ","Chi phí","MIS.CPNS06","011_",null,21,null,"-"]
[null,null,"MIS.CPNS07","CP phúc lợi","Chi phí","MIS.CPNS07","011_",null,22,null,"-"]
["Sub",null,"MIS.CPNS08","CP phụ cấp","Chi phí","MIS.CPNS08","011_",null,23,null,"-"]
[null,null,"MIS.CP001","CP nhiên liệu, năng lượng","Chi phí","MIS.CP001","011_",null,24,null,"-"]
["Fund",null,"MIS.CP002","CP công nghệ thông tin","Chi phí","MIS.CP002","011_",null,25,null,"-"]
[null,null,"MIS.CP003","CP điện thoại, internet","Chi phí","MIS.CP003","011_",null,26,null,"-"]
["Other",null,"MIS.CP004","CP bảo dưỡng sửa chữa","Chi phí","MIS.CP004","011_",null,27,null,"-"]
[null,null,"MIS.CP005","CP PCCC, vật tư tiêu hao","Chi phí","MIS.CP005","011_",null,28,null,"-"]
[null,null,"MIS.CP006","CP cầu đường, bến bãi","Chi phí","MIS.CP006","011_",null,29,null,"-"]
[null,null,"MIS.CP007","Phí bảo trì đường bộ","Chi phí","MIS.CP007","011_",null,30,null,"-"]
[null,null,"MIS.CP008","CP đăng kiểm","Chi phí","MIS.CP008","011_",null,31,null,"-"]
[null,null,"MIS.CP009","CP bảo hiểm trách nhiệm dân sự","Chi phí","MIS.CP009","011_",null,32,null,"-"]
[null,null,"MIS.CP010","CP thuế đất phi nông nghiệp","Chi phí","MIS.CP010","011_",null,33,null,"-"]
[null,null,"MIS.CP011","CP thuê địa điểm","Chi phí","MIS.CP011","011_",null,34,null,"-"]
[null,null,"MIS.CP012","CP bảo hiểm hành khách","Chi phí","MIS.CP012","011_",null,35,null,"-"]
[null,null,"MIS.CP013","CP bảo hiểm tài sản","Chi phí","MIS.CP013","011_",null,36,null,"-"]
[null,null,"MIS.CP014","CP bảo hiểm vật chất","Chi phí","MIS.CP014","011_",null,37,null,"-"]
[null,null,"MIS.CP015","CP in vé, thẻ","Chi phí","MIS.CP015","025_",null,38,null,"-"]
[null,null,"MIS.CP016","CP đền bù tổn thất","Chi phí","MIS.CP016","011_",null,39,null,"-"]
[null,null,"MIS.CP017","CP hỗ trợ, chăm sóc khách hàng","Chi phí","MIS.CP017","025_",null,40,null,"-"]
[null,null,"MIS.CP018","CP đồng phục","Chi phí","MIS.CP018","011_",null,41,null,"-"]
[null,null,"MIS.CP019","CP thuê xe","Chi phí","MIS.CP019","011_",null,42,null,"-"]
[null,null,"MIS.CP020","CP vận tải khác","Chi phí","MIS.CP020","011_",null,43,null,"-"]
[null,null,"MIS.CP021","Giá vốn phụ tùng","Chi phí","MIS.CP021","011_",null,44,null,"-"]
[null,null,"MIS.CP022","CP vật tư tiêu hao","Chi phí","MIS.CP022","011_",null,45,null,"-"]
[null,null,"MIS.CP023","CP thuê ngoài gia công","Chi phí","MIS.CP023","011_",null,46,null,"-"]
[null,null,"MIS.CP024","CP khác","Chi phí","MIS.CP024","011_",null,47,null,"-"]
[null,null,"MIS.CP025","CP S&M","Chi phí","MIS.CP025","025_",null,48,null,"-"]
[null,null,"MIS.CP026","CP công tác (CTP, vé máy bay, khách sạn, taxi công tác)","Chi phí","MIS.CP026","026_",null,49,null,"-"]
[null,null,"MIS.CP027","CP công cụ dụng cụ vật tư tiêu hao khối hỗ trợ","Chi phí","MIS.CP027","026_",null,50,null,"-"]
[null,null,"MIS.CP028","CP vận chuyển, taxi","Chi phí","MIS.CP028","026_",null,51,null,"-"]
[null,null,"MIS.CP029","CP Tiếp khách","Chi phí","MIS.CP029","026_",null,52,null,"-"]
[null,null,"MIS.CP030","CP đào tạo","Chi phí","MIS.CP030","026_",null,53,null,"-"]
[null,null,"MIS.CP031","CP tuyển dụng","Chi phí","MIS.CP031","026_",null,54,null,"-"]
[null,null,"MIS.CP032","CP nhu yếu phẩm","Chi phí","MIS.CP032","026_",null,55,null,"-","Z000999","Non Budget Control"]
[null,null,"MIS.CP033","CP văn phòng phẩm, hành chính","Chi phí","MIS.CP033","026_",null,56,null,"-","Z000999_BP","NonBudget Control_BP"]
[null,null,"MIS.CP034","Phí ngân hàng","Chi phí","MIS.CP034","026_",null,57,null,"-","Z000999_GR","NonBudget Control_GR"]
[null,null,"MIS.CP035","Thuế môn bài, thuế, Phí khác","Chi phí","MIS.CP035","026_",null,58,null,"-"]
[null,null,"MIS.CP036","CP chuyên gia, tư vấn","Chi phí","MIS.CP036","026_",null,59,null,"-"]
[null,null,"MIS.CP037","CP làm giấy phép, giấy tờ","Chi phí","MIS.CP037","026_",null,60,null,"-"]
[null,null,"MIS.CP038","CP dịch vụ mua ngoài","Chi phí","MIS.CP038","026_",null,61,null,"-"]
[null,null,"MIS.CP039","CP sửa chữa văn phòng","Chi phí","MIS.CP039","026_",null,62,null,"-"]
[null,null,"MIS.CP040","CP điện,nước","Chi phí","MIS.CP040","026_",null,63,null,"-"]
[null,null,"MIS.CPKH01","CP khấu hao phương tiện","Chi phí","MIS.CPKH01","011_",null,64,null,"-"]
[null,null,"MIS.CPKH02","CP khấu hao thiết bị văn phòng","Chi phí","MIS.CPKH02","026_",null,65,null,"-"]
[null,null,"MIS.CPKH03","CP khấu hao nhà xưởng","Chi phí","MIS.CPKH03","011_",null,66,null,"-"]
[null,null,"MIS.DTTC","Thu nhập tài chính","TN tài chính","MIS.DTTC","021_",null,67,null,"Thu nhập tài chính"]
[null,null,"MIS.CPTC","Chi phí tài chính","Chi phí","MIS.CPTC","022_",null,68,null,"Chi phí tài chính"]
[null,null,"MIS.DTK","Thu khác","TN khác","MIS.DTK","031_",null,69,null,"Thu khác"]
[null,null,"MIS.CPK","CP khác","Chi phí","MIS.CPK","032_",null,70,null,"Chi phí khác"]

{"sheet":"Object","index":8,"n_rows":32,"n_cols":8,"rows_kept":32,"cut":false,"hidden":false,"merged":[]}
[{"$f":"Range2(L_OJ[Site])","v":"E6:E14"}]
[{"$f":"Site!A2","v":"𝓛𝓲𝓮𝓷𝓝𝓲𝓷𝓱"},null,"OBJECT CODE (MÃ ĐỐI TƯỢNG DỊCH VỤ)",null,"Ví dụ: tuyến xe, tòa nhà"]
[{"$f":"Site!A3","v":"𝓑𝓾𝓼"}]
[]
[null,"_","Object","Object name","Site","Properties","#","_"]
["Site",null,"08A","Long Biên - Đông Mỹ","LN"]
[null,null,"08B","Long Biên - Vạn Phúc (Thanh Trì)","LN"]
["Fund center",null,"09A","Trần Khánh Dư - Cầu Giấy - ĐH Mỏ","LN"]
[null,null,"09B","Trần Khánh Dư - Công viên Thống Nhất - Bến xe Mỹ Đình","LN"]
["Profit center",null,"19","Trần Khánh Dư - HV Chính sách và phát triển","LN"]
[null,null,"21A","Bến xe Giáp Bát - Bến xe Yên Nghĩa","LN"]
["Cost center",null,"21B","Duyên Thái - Bến xe Mỹ Đình","LN"]
[null,null,"37","Bến xe Giáp Bát - Chương Mỹ","LN"]
["MIS code",null,"125","BX Thường Tín- Tế Tiêu","LN"]
[]
["Commit"]
[]
["Object"]
[]
["Asset"]
[]
["Statistic"]
[]
["Financial"]
[]
["Trust"]
[]
["Sub"]
[]
["Fund"]
[]
["Other"]

{"sheet":"Asset","index":9,"n_rows":32,"n_cols":8,"rows_kept":32,"cut":false,"hidden":false,"merged":[]}
[]
[{"$f":"Site!A2","v":"𝓛𝓲𝓮𝓷𝓝𝓲𝓷𝓱"},null,"ASSET (PHÂN LOẠI TÀI SẢN)","Là danh mục để phân loại tài sản khi lập ngân sách CAPEX"]
[{"$f":"Site!A3","v":"𝓑𝓾𝓼"}]
[null,null,null,"⏬"]
[null,"_","Asset type","TK NG","Properties","#","_","Tên tài khoản"]
["Site",null,"Mua sắm CCDC & TSCĐ hoạt động","220_",null,1,null,{"$f":"_xlfn.XLOOKUP(L_AS[TK NG],L_FS[FS code],L_FS[FS name],\"-\")","v":"Tài sản cố định"}]
[null,null,"CP Hệ thống","220_",null,2,null,"Tài sản cố định"]
["Fund center",null,"CP Mua phương tiện Ebus","220_",null,3,null,"Tài sản cố định"]
[null,null,"CP Đầu tư thiết bị xưởng sửa chữa dịch vụ Ebus","240_",null,4,null,"Tài sản dở dang dài hạn"]
["Profit center",null,"CP Đầu tư Trạm sạc","240_",null,5,null,"Tài sản dở dang dài hạn"]
[null,null,"Hạ tầng điện trạm sạc","240_",null,6,null,"Tài sản dở dang dài hạn"]
["Cost center"]
[]
["MIS code"]
[]
["Commit"]
[]
["Object"]
[]
["Asset"]
[]
["Statistic"]
[]
["Financial"]
[]
["Trust"]
[]
["Sub"]
[]
["Fund"]
[]
["Other"]

{"sheet":"Statistic","index":10,"n_rows":51,"n_cols":7,"rows_kept":51,"cut":false,"hidden":false,"merged":[]}
[]
[{"$f":"Site!A2","v":"𝓛𝓲𝓮𝓷𝓝𝓲𝓷𝓱"},null,"STATISTIC (CHỈ TIÊU THỐNG KÊ)",null,"Là danh mục các chỉ tiêu thống kê hoạt động, danh mục này chủ yếu là các chỉ tiêu phi tài chính"]
[{"$f":"Site!A3","v":"𝓑𝓾𝓼"}]
[]
[null,"_","Statistics","Statistics name","Unit","Properties","#"]
["Site",null,"HQ11","Số tuyến mở mới","Tuyến",null,1]
[null,null,"HQ12","Số tuyến hoạt động","Tuyến",null,2]
["Fund center",null,"HQ21","Số xe kế hoạch","Xe",null,3]
[null,null,"HQ22","Số xe vận doanh","Xe",null,4]
["Profit center",null,"HQ31","Số lượt xe vận hành","Lượt",null,5]
[null,null,"HQ32","Số lượt xe bỏ","Lượt",null,6]
["Cost center",null,"HQ33","Số lượt xe tăng cường","Lượt",null,7]
[null,null,"HQ4","Tỷ lệ xuất bến đúng giờ","%",null,8]
["MIS code",null,"HQ5","Số km hoạt động (Xuất HĐ)","Km",null,9]
[null,null,"HQ51","km hoạt động có trợ giá (Xuất HĐ)","Km",null,10]
["Commit",null,"HQ52","km hoạt động không trợ giá (Xuất HĐ)","Km",null,11]
[null,null,"HQ6","Số km hoạt động (thực tế xe chạy)","Km",null,12]
["Object",null,"HQ61","km hoạt động có trợ giá (thực tế xe chạy)","Km",null,13]
[null,null,"HQ62","km hoạt động không trợ giá (thực tế xe chạy)","Km",null,14]
["Asset",null,"NL1","Điện","Kwh",null,15]
[null,null,"NL11","Chỉ số kwh điện theo công tơ khu vực khác (ko tính công tơ trạm sạc)","Kwh",null,16]
["Statistic",null,"NL12","Chỉ số kwh điện theo công tơ khu vực trạm sạc","Kwh",null,17]
[null,null,"NL121","Chỉ số kwh điện theo phần mềm trạm sạc","Kwh",null,18]
["Financial",null,"NL122","Kwh điện chênh lệch giữa công tơ - phần mềm","Kwh",null,19]
[null,null,"NL2","Nước","m3",null,20]
["Trust",null,"NL21","Nước tiêu thụ tại khu vực nhà rửa xe","m3",null,21]
[null,null,"NL23","Số lần rửa xe","lần",null,22]
["Sub",null,"NS1","Định biên nhân sự toàn cty","Người",null,23]
[null,null,"NS3","Định biên nhân sự khối vận hành trực tiếp","Người",null,24]
["Fund",null,"NS5","Định biên nhân sự khối gián tiếp","Người",null,25]
[null,null,"NS8","Tổng số lượng nhân sự lũy kế","Người",null,26]
["Other",null,"VH11","Khách vé lượt","Khách",null,27]
[null,null,"VH12","Khách vé tháng 1 tuyến","Khách",null,28]
[null,null,"VH13","Khách vé tháng 1 tuyến","Khách",null,29]
[null,null,"VH21","Doanh thu vé lượt","1000 đ",null,30]
[null,null,"VH22","Doanh thu vé tháng 1 tuyến","1000 đ",null,31]
[null,null,"VH23","Doanh thu vé tháng liên tuyến","1000 đ",null,32]
[null,null,"NL131","Đơn giá điện bình quân","đ/kw",null,33]
[null,null,"VH24","Doanh thu trợ giá","1000 đ",null,34]
[null,null,"NL132","Điện cao điểm","%",null,35]
[null,null,"NL133","Điện bình thường","%",null,36]
[null,null,"NL134","Điện thấp điểm","%",null,37]
[null,null,"HQ34","Số lượt xe không được nghiệm thu (xe rỗng_PQ)","lượt",null,38]
[null,null,"HQ20","Số xe VinBus có","Xe",null,39]
[null,null,"BD1","Lượt xe ô tô vào xưởng","lượt xe",null,40]
[null,null,"BD2","Lượt xe máy vào xưởng","lượt xe",null,41]
[null,null,"BD3","Lượt xe ô tô bảo hành","lượt xe",null,42]
[null,null,"BD4","Lượt xe máy bảo hành","lượt xe",null,43]
[null,null,"BD5","Số KTV","người",null,44]
[null,null,"BD11","Lượt xe Buýt vào xưởng","lượt xe",null,45]
[null,null,"BD31","Lượt xe Buýt bảo hành","lượt xe",null,46]

{"sheet":"Financial","index":11,"n_rows":53,"n_cols":11,"rows_kept":53,"cut":false,"hidden":false,"merged":[]}
[{"$f":"Range2(L_FS[BS code])","v":"E6:E53"}]
[{"$f":"Site!A2","v":"𝓛𝓲𝓮𝓷𝓝𝓲𝓷𝓱"},null,"FINANCIAL (CHỈ TIÊU BCTC)",null,"Là chỉ tiêu báo cáo tài chính, được nội suy ra từ các mã CI và Cost center, để lập báo cáo tài chính dự phóng"]
[{"$f":"Site!A3","v":"𝓑𝓾𝓼"},null,null,null,null,null,null,null,"CASH FLOW"]
[null,null,null,null,"⏬","⏬"]
[null,"_","FS code","FS name","BS code","No","Properties",null,"CF code","CF name","Properties"]
["Site",null,"001_","Doanh thu bán hàng","421_",null,null,null,"01_","Tiền thu từ bán hàng và cung cấp dịch vụ và doanh "]
[null,null,"002_","Chiết khấu, giảm giá","421_",null,null,null,"02_","Tiền chi trả cho người cung cấp hàng hóa, dịch vụ"]
["Fund center",null,"011_","Giá vốn hàng bán","421_",null,null,null,"03_","Tiền chi trả người lao động"]
[null,null,"021_","Doanh thu tài chính","421_",null,null,null,"04_","Tiền lãi vay đã trả"]
["Profit center",null,"022_","Chi phí tài chính","421_",null,null,null,"05_","Thuế thu nhập doanh nghiệp đã nộp"]
[null,null,"025_","Chi phí bán hàng","421_",null,null,null,"06_","Tiền thu khác từ các hoạt động kinh doanh"]
["Cost center",null,"026_","Chi phí quản lý","421_",null,null,null,"07_","Tiền chi khác cho các hoạt động kinh doanh"]
[null,null,"031_","Thu thập khác","421_",null,null,null,"21_","Tiền chi để mua sắm và xây dựng TSCĐ các tài sản dài hạn"]
["MIS code",null,"032_","Chi phí khác","421_",null,null,null,"22_","Tiền thu từ thanh lý, nhượng bán TSCĐ tài sản dài hạn"]
[null,null,"110_","Tiền và các khoản tương đương tiền","110_",1,null,null,"23_","Tiền chi cho vay, mua công cụ nợ của đơn vị khác"]
["Commit",null,"120_","Các khoản đầu tư tài chính ngắn hạn","120_",1,null,null,"24_","Tiền thu hồi cho vay, bán lại công cụ nợ"]
[null,null,"130_","Các khoản phải thu ngắn hạn","130_",1,null,null,"25_","Tiền chi đầu tư góp vốn vào các đơn vị khác"]
["Object",null,"140_","Hàng tồn kho","140_",1,null,null,"26_","Tiền thu hồi đầu tư góp vốn vào các đơn vị khác"]
[null,null,"150_","Chi phí trả trước ngắn hạn","150_",1,null,null,"27_","Tiền thu lãi cho vay, cổ tức, lợi nhuận được chia"]
["Asset",null,"152_","Thuế GTGT được khấu trừ HĐKD","152_",1,null,null,"31_","Tiền thu từ phát hành cổ phiếu, nhận vốn góp của CSH"]
[null,null,"153_","Thuế GTGT được khấu trừ HĐĐT","153_",1,null,null,"32_","Tiền trả lại vốn góp cho các chủ sở hữu"]
["Statistic",null,"158_","Tài sản ngắn hạn khác","158_",1,null,null,"33_","Tiền thu từ đi vay"]
[null,null,"210_","Các khoản phải thu dài hạn","210_",1,null,null,"34_","Tiền trả nợ gốc vay"]
["Financial",null,"220_","Tài sản cố định","220_",1,null,null,"36_","Cổ tức và lợi nhuận đã trả cho CSH"]
[null,null,"223_","Hao mòn TSCĐ","223_",1]
["Trust",null,"231_","Bất động sản đầu tư","231_",1]
[null,null,"232_","Hao mòn BĐS đầu tư","232_",1]
["Sub",null,"240_","Tài sản dở dang dài hạn","240_",1]
[null,null,"250_","Các khoản đầu tư tài chính dài hạn","250_",1]
["Fund",null,"260_","Tổng tài sản dài hạn khác","260_",1]
[null,null,"269_","Lợi thế thương mại","269_",1]
["Other",null,"311_","Phải trả người bán ngắn hạn","311_",-1]
[null,null,"312_","Người mua trả tiền trước","312_",-1]
[null,null,"313_","Thuế và các khoản phải nộp NN","313_",-1]
[null,null,"314_","Phải trả nhân viên","314_",-1]
[null,null,"315_","Chi phí phải trả ngắn hạn","315_",-1]
[null,null,"318_","Doanh thu chưa thực hiện ngắn hạn","318_",-1]
[null,null,"319_","Các khoản phải trả ngắn hạn khác","319_",-1]
[null,null,"320_","Vay và nợ thuê tài chính ngắn hạn","320_",-1]
[null,null,"321_","Vay và nợ dài hạn đến hạn trả","321_",-1]
[null,null,"331_","Phải trả người bán dài hạn","331_",-1]
[null,null,"336_","Doanh thu chưa thực hiện dài hạn","336_",-1]
[null,null,"338_","Vay và nợ thuê tài chính dài hạn","338_",-1]
[null,null,"342_","Dự phòng phải trả dài hạn","342_",-1]
[null,null,"350_","Nợ dài hạn khác","350_",-1]
[null,null,"411_","Vốn đầu tư của chủ sở hữu","411_",-1]
[null,null,"412_","Thặng dư vốn cổ phần","412_",-1]
[null,null,"416_","Chênh lệch đánh giá lại tài sản","416_",-1]
[null,null,"421_","Lợi nhuận sau thuế chưa phân phối","421_",-1]
[null,null,"430_","Nguồn vốn khác","430_",-1]
[null,null,"621_","Chi phí NPL trực tiếp","421_"]
[null,null,"622_","Chi phí NC trực tiếp","421_"]
[null,null,"627_","Chi phí sản xuất chung","421_"]

{"sheet":"Trust","index":12,"n_rows":32,"n_cols":5,"rows_kept":32,"cut":false,"hidden":false,"merged":[]}
[]
[{"$f":"Site!A2","v":"𝓛𝓲𝓮𝓷𝓝𝓲𝓷𝓱"},null,"MỨC ĐỘ TIN CẬY","Là danh mục phân loại mức độ tin cậy của ngân sách"]
[{"$f":"Site!A3","v":"𝓑𝓾𝓼"}]
[]
[null,"_","Trust","Trust note","#"]
["Site",null,"Xanh","Các khoản chi thường xuyên, có cơ sở lập",1]
[null,null,"Vàng","Các khoản chi thay đổi theo các kế hoạch nhưng không có công thức tính, cần có CBLĐ cấp cao hơn phê duyệt",2]
["Fund center",null,"Đỏ","Các khoản chi thay đổi tương ứng theo các kế hoạch (kiểm soát thông qua bộ ĐMHM) nhưng khi thay đổi kế hoạch thì Ngân sách chi phí không được cập nhật tương ứng",3]
[null,null,"Tím",null,4]
["Profit center"]
[]
["Cost center"]
[]
["MIS code"]
[]
["Commit"]
[]
["Object"]
[]
["Asset"]
[]
["Statistic"]
[]
["Financial"]
[]
["Trust"]
[]
["Sub"]
[]
["Fund"]
[]
["Other"]

{"sheet":"Sub","index":13,"n_rows":32,"n_cols":6,"rows_kept":32,"cut":false,"hidden":false,"merged":[]}
[]
[{"$f":"Site!A2","v":"𝓛𝓲𝓮𝓷𝓝𝓲𝓷𝓱"},null,"MÃ PHỤ"]
[{"$f":"Site!A3","v":"𝓑𝓾𝓼"}]
[]
[null,"_","Sub code","Sub name","Properties","#"]
["Site"]
[]
["Fund center"]
[]
["Profit center"]
[]
["Cost center"]
[]
["MIS code"]
[]
["Commit"]
[]
["Object"]
[]
["Asset"]
[]
["Statistic"]
[]
["Financial"]
[]
["Trust"]
[]
["Sub"]
[]
["Fund"]
[]
["Other"]

{"sheet":"Fund","index":14,"n_rows":32,"n_cols":5,"rows_kept":32,"cut":false,"hidden":false,"merged":[]}
[]
[{"$f":"Site!A2","v":"𝓛𝓲𝓮𝓷𝓝𝓲𝓷𝓱"},null,"NGUỒN QUỸ"]
[{"$f":"Site!A3","v":"𝓑𝓾𝓼"}]
[]
[null,"_","Fund","Fund name","#"]
["Site"]
[]
["Fund center"]
[]
["Profit center"]
[]
["Cost center"]
[]
["MIS code"]
[]
["Commit"]
[]
["Object"]
[]
["Asset"]
[]
["Statistic"]
[]
["Financial"]
[]
["Trust"]
[]
["Sub"]
[]
["Fund"]
[]
["Other"]

{"sheet":"Other","index":15,"n_rows":32,"n_cols":4,"rows_kept":32,"cut":false,"hidden":false,"merged":[]}
[]
[{"$f":"Site!A2","v":"𝓛𝓲𝓮𝓷𝓝𝓲𝓷𝓱"},null,"SỐ THÁNG PHÂN BỔ"]
[{"$f":"Site!A3","v":"𝓑𝓾𝓼"}]
[]
[null,"_","KỲ PB","#"]
["Site",null,0,1]
[null,null,1,2]
["Fund center",null,2,3]
[null,null,3,4]
["Profit center",null,6,5]
[null,null,9,6]
["Cost center",null,12,7]
[null,null,15,8]
["MIS code",null,18,9]
[null,null,21,10]
["Commit",null,24,11]
[null,null,27,12]
["Object",null,30,13]
[null,null,33,14]
["Asset",null,36,15]
[null,null,39,16]
["Statistic",null,42,17]
[]
["Financial"]
[]
["Trust"]
[]
["Sub"]
[]
["Fund"]
[]
["Other"]